bitfinex-derivatives/quotes_BTCF0:USTF0_20241210
["timestamp","ask_amount","ask_price","bid_price","bid_amount"]
[1733789397316,0.032,97122.0,97110.0,9.449e-05]
[1733789397317,0.051458,97113.0,97110.0,9.449e-05]
[1733789397621,0.051459,97112.0,97110.0,9.449e-05]
[1733789399426,0.052459,97112.0,97110.0,9.449e-05]
[1733789402420,0.052459,97112.0,97111.0,0.00111001]
[1733789402831,0.051459,97112.0,97111.0,0.00111001]
[1733789403422,0.051459,97112.0,97111.0,0.0014148]
[1733789406733,0.051459,97112.0,97110.0,9.449e-05]
[1733789406923,0.051463,97102.0,97100.0,0.0501]
[1733789407920,0.3608,97111.0,97100.0,0.0502218]
[1733789408229,0.3608,97111.0,97100.0,0.4110218]
[1733789408751,0.36132001,97121.0,97110.0,0.01]
[1733789408923,0.10408593,97122.0,97116.0,0.3608]
[1733789409829,0.11223703,97122.0,97116.0,0.3608]
[1733789410029,0.11223703,97122.0,97119.0,0.0011092]
[1733789410224,0.051454,97121.0,97119.0,0.0011092]
[1733789411131,0.051454,97121.0,97116.0,0.3608]
[1733789411132,0.03178403,97122.0,97120.0,0.0011092]
[1733789411434,0.0111511,97122.0,97121.0,0.01]
[1733789411625,0.003,97122.0,97121.0,0.0422]
[1733789411827,0.051443,97141.0,97121.0,0.0422]
[1733789412031,0.051443,97141.0,97131.0,0.3608]
[1733789412531,0.0328,97145.0,97131.0,0.3608]
[1733789412532,0.00971951,97132.0,97131.0,0.3608]
[1733789413034,0.03168913,97132.0,97131.0,0.3708]
[1733789413223,0.03168913,97132.0,97131.0,0.3719092]
[1733789413529,0.051436,97155.0,97143.0,0.01]
[1733789413839,0.051437,97151.0,97145.0,0.3608]
[1733789414227,0.00887224,97152.0,97145.0,0.3608]
[1733789414543,0.00827223,97152.0,97147.0,0.051439]
[1733789414733,0.051436,97154.0,97148.0,0.0014148]
[1733789414932,0.051438,97150.0,97148.0,0.0014148]
[1733789415535,0.02035784,97149.0,97148.0,0.0014148]
[1733789417438,0.02335784,97149.0,97148.0,0.0014148]
[1733789417736,0.07479684,97149.0,97148.0,0.0014148]
[1733789417950,0.44359684,97149.0,97148.0,0.0014148]
[1733789418242,0.47699684,97149.0,97148.0,0.0014148]
[1733789418826,0.42555784,97149.0,97123.0,0.3608]
[1733789419032,0.051448,97131.0,97130.0,0.35679481]
[1733789419537,0.051448,97131.0,97122.0,0.01]
[1733789419538,0.3608,97138.0,97122.0,0.01]
[1733789419739,0.3608,97138.0,97112.0,0.3608]
[1733789419740,0.3608,97130.0,97112.0,0.3608]
[1733789419932,0.051454,97120.0,97112.0,0.3608]
[1733789420435,0.051449,97129.0,97112.0,0.3608]
[1733789420744,0.3608,97130.0,97112.0,0.3608]
[1733789420745,0.10175538,97122.0,97112.0,0.3608]
[1733789420933,0.46355538,97130.0,97112.0,0.3608]
[1733789421242,0.051453,97122.0,97112.0,0.3608]
[1733789421636,0.051453,97122.0,97112.0,0.3618]
[1733789423739,0.3608,97125.0,97112.0,0.3618]
[1733789423940,0.0083966,97130.0,97120.0,0.412254]
[1733789424242,0.51352157,97130.0,97120.0,0.3608]
[1733789424536,0.51352157,97130.0,97112.0,0.3618]
[1733789424738,0.051456,97117.0,97112.0,0.3618]
[1733789425144,0.0203657,97121.0,97112.0,0.3608]
[1733789425145,0.051456,97116.0,97112.0,0.3608]
[1733789425843,0.051456,97116.0,97112.0,0.3618]
[1733789426038,0.051457,97114.0,97112.0,0.3618]
[1733789426640,0.051457,97114.0,97113.0,0.00110972]
[1733789427746,0.051457,97114.0,97113.0,0.0014141]
[1733789428636,0.052457,97114.0,97113.0,0.0014141]
[1733789433043,0.052457,97114.0,97101.0,0.3608]
[1733789433044,0.051462,97104.0,97101.0,0.3608]
[1733789434049,0.051463,97102.0,97101.0,0.3608]
[1733789434248,0.051463,97102.0,97101.0,0.3618]
[1733789435261,0.052463,97102.0,97101.0,0.3618]
[1733789435456,0.052463,97102.0,97101.0,0.001]
[1733789437559,0.0001283,97101.0,97100.0,0.02209601]
[1733789439062,0.0001283,97101.0,97100.0,0.02309601]
[1733789439761,0.0001283,97101.0,97082.0,1.8608]
[1733789439762,0.051474,97083.0,97082.0,1.8608]
[1733789440671,0.051474,97083.0,97082.0,1.86093043]
[1733789440964,0.052474,97083.0,97082.0,1.86093043]
[1733789441560,0.053474,97083.0,97082.0,1.86093043]
[1733789442464,0.06165609,97083.0,97082.0,1.86093043]
[1733789445674,0.01018209,97083.0,97082.0,1.86093043]
[1733789445865,0.002,97083.0,97082.0,1.86093043]
[1733789446666,0.001,97083.0,97082.0,1.91240443]
[1733789447364,0.051467,97095.0,97089.0,0.05147]
[1733789447566,0.05968067,97095.0,97092.0,0.3608]
[1733789447866,0.00821367,97095.0,97092.0,0.3608]
[1733789448075,0.0001283,97101.0,97092.0,0.3608]
[1733789448260,0.0001283,97101.0,97100.0,0.3608]
[1733789448869,0.051455,97119.0,97100.0,0.3608]
[1733789449058,0.051455,97119.0,97116.0,0.3608]
[1733789449368,0.10188005,97130.0,97116.0,1.8608]
[1733789449667,0.00978072,97117.0,97116.0,1.8608]
[1733789449869,0.00823528,97117.0,97116.0,1.8608]
[1733789450062,0.051455,97118.0,97116.0,1.8608]
[1733789450365,0.02495877,97117.0,97116.0,1.8608]
[1733789450763,0.03195877,97117.0,97116.0,1.8608]
[1733789451266,0.02495877,97117.0,97116.0,1.8608]
[1733789451469,0.02095877,97117.0,97116.0,1.8608]
[1733789451668,0.02295877,97117.0,97116.0,1.8608]
[1733789451868,0.02295877,97117.0,97116.0,0.3608]
[1733789452767,0.02995877,97117.0,97116.0,0.3608]
[1733789452974,0.009,97117.0,97116.0,0.7216]
[1733789453266,0.009,97117.0,97116.0,0.77931816]
[1733789453468,0.009,97117.0,97116.0,0.96390681]
[1733789453675,0.009,97117.0,97116.0,2.27931816]
[1733789454180,0.060456,97117.0,97116.0,0.3608]
[1733789454768,0.009,97117.0,97116.0,0.3608]
[1733789460082,0.060456,97117.0,97116.0,0.3608]
[1733789460271,0.060456,97117.0,97108.0,1.50076]
[1733789460466,0.060456,97117.0,97108.0,1.5]
[1733789460771,0.009,97117.0,97108.0,1.5]
[1733789460976,0.05146,97109.0,97101.0,0.3608]
[1733789461479,0.3698,97117.0,97102.0,1.5]
[1733789461480,0.06097601,97117.0,97102.0,1.5]
[1733789461777,0.10188005,97112.0,97102.0,1.5]
[1733789461979,0.05146,97109.0,97102.0,1.5]
[1733789462479,0.10188005,97112.0,97102.0,1.5]
[1733789462480,0.051461,97107.0,97102.0,1.5]
[1733789463273,0.051461,97107.0,97101.0,0.3608]
[1733789463478,0.051462,97105.0,97101.0,0.3608]
[1733789463667,0.051463,97104.0,97101.0,0.3608]
[1733789463870,0.003,97107.0,97101.0,0.3608]
[1733789463871,0.051463,97103.0,97101.0,0.3608]
[1733789466186,0.053463,97103.0,97101.0,0.3608]
[1733789466684,0.051463,97103.0,97101.0,0.3608]
[1733789466874,0.051468,97094.0,97090.0,1.50154485]
[1733789467078,0.002,97103.0,97090.0,1.50154485]
[1733789467079,0.10188005,97100.0,97090.0,1.50154485]
[1733789467278,0.051469,97092.0,97090.0,0.00154485]
[1733789467481,0.054,97099.0,97090.0,0.00154485]
[1733789467874,0.051466,97098.0,97092.0,0.3608]
[1733789468077,0.051461,97107.0,97092.0,0.3608]
[1733789468378,0.38234329,97109.0,97100.0,0.051464]
[1733789468576,0.38234329,97109.0,97101.0,0.3608]
[1733789468577,0.002,97103.0,97101.0,0.3608]
[1733789469089,0.02102328,97109.0,97101.0,0.3608]
[1733789469286,0.02102328,97109.0,97107.0,0.05146]
[1733789469477,0.02102328,97109.0,97101.0,0.3608]
[1733789471382,0.051461,97108.0,97101.0,0.3608]
[1733789471574,0.051461,97108.0,97100.0,0.3608]
[1733789472487,0.052461,97108.0,97100.0,0.3608]
[1733789473275,0.001,97108.0,97100.0,0.3608]
[1733789473473,0.001,97108.0,97096.0,0.051466]
[1733789474675,0.051463,97104.0,97093.0,0.18459481]
[1733789474875,0.051467,97095.0,97093.0,0.18459481]
[1733789475077,0.10188005,97103.0,97090.0,0.00154485]
[1733789475078,0.0582,97094.0,97090.0,0.00154485]
[1733789475987,0.0582,97094.0,97090.0,0.36234485]
[1733789476282,0.0549,97107.0,97090.0,0.41381385]
[1733789476283,0.051462,97104.0,97090.0,0.41381385]
[1733789476580,0.001,97095.0,97090.0,0.41381385]
[1733789477674,0.051469,97091.0,97090.0,0.3608]
[1733789477879,0.051469,97091.0,97085.0,0.1846994]
[1733789478075,0.051469,97091.0,97082.0,0.00013043]
[1733789479284,0.052469,97091.0,97082.0,0.00013043]
[1733789479984,0.001,97091.0,97082.0,0.00013043]
[1733789480387,0.05147,97089.0,97082.0,0.00013043]
[1733789481881,0.05247,97089.0,97082.0,0.00013043]
[1733789482887,0.051474,97083.0,97082.0,0.00013043]
[1733789485087,0.052474,97083.0,97082.0,0.00013043]
[1733789492496,0.051479,97072.0,97064.0,0.1846994]
[1733789492697,0.001,97083.0,97062.0,0.1846994]
[1733789492698,0.051481,97070.0,97062.0,0.1846994]
[1733789493001,0.051481,97070.0,97065.0,1.5]
[1733789493481,0.051481,97070.0,97069.0,0.00011384]
[1733789494492,0.052481,97070.0,97069.0,0.00011384]
[1733789495200,0.053481,97070.0,97069.0,0.00011384]
[1733789496297,0.06137484,97070.0,97069.0,0.00011384]
[1733789500801,0.11757484,97070.0,97069.0,0.00011384]
[1733789501195,0.13834399,97070.0,97069.0,0.00011384]
[1733789501390,0.13844654,97070.0,97069.0,0.00011384]
[1733789501594,0.051488,97055.0,97054.0,1.5]
[1733789502527,0.051488,97055.0,97054.0,1.50008857]
[1733789503425,0.10188005,97064.0,97054.0,1.50008857]
[1733789503627,0.051481,97069.0,97059.0,0.3608]
[1733789503837,0.03076554,97070.0,97067.0,0.3608]
[1733789504139,0.03076554,97070.0,97068.0,0.0591]
[1733789504439,0.03076554,97070.0,97069.0,1.5]
[1733789505247,0.08224554,97070.0,97069.0,1.5]
[1733789505935,0.051481,97068.0,97067.0,0.3608]
[1733789508637,0.3608,97069.0,97059.0,0.28795927]
[1733789508834,0.46268005,97069.0,97059.0,0.28795927]
[1733789509036,0.0564,97068.0,97059.0,0.28795927]
[1733789509943,0.051488,97056.0,97055.0,0.0008]
[1733789510344,0.051488,97056.0,97054.0,8.857e-05]
[1733789511144,0.0574,97068.0,97054.0,8.857e-05]
[1733789511145,0.051484,97064.0,97054.0,8.857e-05]
[1733789511338,0.001,97068.0,97057.0,0.412287]
[1733789511527,0.051482,97067.0,97057.0,0.412287]
[1733789511742,0.02976554,97070.0,97060.0,0.051485]
[1733789512242,0.02976554,97070.0,97065.0,0.3608]
[1733789512638,0.02976554,97070.0,97066.0,0.1126]
[1733789513139,0.03076554,97070.0,97066.0,0.1126]
[1733789513351,0.051482,97068.0,97066.0,0.1126]
[1733789513841,0.03276554,97070.0,97069.0,0.051481]
[1733789514236,0.03276554,97070.0,97069.0,0.05470097]
[1733789514437,0.03276554,97070.0,97069.0,0.051481]
[1733789514743,0.03276554,97070.0,97069.0,1.7364042]
[1733789515450,0.03276554,97070.0,97069.0,1.73962407]
[1733789515943,0.00154575,97089.0,97069.0,2.04894307]
[1733789516147,0.01032039,97089.0,97083.0,0.3608]
[1733789516340,0.01032039,97089.0,97084.0,0.0589]
[1733789516950,0.02096257,97088.0,97087.0,0.051471]
[1733789517245,0.00010033,97095.0,97094.0,0.051468]
[1733789517451,0.00010033,97095.0,97094.0,0.412268]
[1733789517643,0.0086707,97095.0,97094.0,0.412268]
[1733789517879,0.0086707,97095.0,97094.0,1.912268]
[1733789518547,0.02972918,97095.0,97094.0,1.912268]
[1733789518851,0.02115881,97095.0,97094.0,1.912268]
[1733789519049,0.02515881,97095.0,97094.0,1.912268]
[1733789519447,0.02515881,97095.0,97094.0,1.8608]
[1733789519842,0.03415881,97095.0,97094.0,1.8618]
[1733789520046,0.03415881,97095.0,97094.0,0.3618]
[1733789521258,0.04305176,97095.0,97094.0,0.3618]
[1733789522352,0.03415881,97095.0,97094.0,0.3618]
[1733789522744,0.20389298,97108.0,97107.0,0.051461]
[1733789522935,0.00154514,97128.0,97111.0,0.051459]
[1733789522936,0.02096575,97112.0,97111.0,0.051459]
[1733789523135,0.051447,97133.0,97111.0,0.3608]
[1733789523339,0.051449,97129.0,97128.0,0.3608]
[1733789523540,0.051449,97129.0,97112.0,0.1132]
[1733789523541,0.3608,97133.0,97113.0,1.5]
[1733789523750,0.051458,97113.0,97112.0,9.036e-05]
[1733789524257,0.0541,97121.0,97112.0,9.036e-05]
[1733789524453,0.051453,97123.0,97112.0,9.036e-05]
[1733789525050,0.00888035,97123.0,97122.0,0.3608]
[1733789525253,0.0541,97128.0,97122.0,0.3608]
[1733789525549,0.03000399,97129.0,97122.0,0.3608]
[1733789526151,0.03857635,97129.0,97122.0,0.3608]
[1733789526455,0.004,97128.0,97122.0,0.3608]
[1733789526748,0.004,97123.0,97122.0,0.3608]
[1733789527060,0.004,97123.0,97122.0,0.412253]
[1733789527996,0.004,97123.0,97122.0,1.912253]
[1733789528753,0.03757635,97129.0,97127.0,0.05145]
[1733789528941,0.008,97129.0,97127.0,0.05145]
[1733789529142,0.00012057,97132.0,97131.0,0.051448]
[1733789529355,0.00012057,97132.0,97131.0,0.412248]
[1733789529857,0.00890042,97141.0,97131.0,0.412248]
[1733789530061,0.00890042,97141.0,97140.0,0.412243]
[1733789530253,0.02019638,97148.0,97147.0,0.05144]
[1733789530557,0.30889405,97152.0,97147.0,0.3608]
[1733789530740,0.30889405,97152.0,97151.0,0.051437]
[1733789530941,0.30889405,97152.0,97151.0,1.551437]
[1733789532651,0.30889405,97152.0,97151.0,1.552437]
[1733789532652,0.31789405,97152.0,97151.0,1.552437]
[1733789533052,0.32389405,97152.0,97151.0,1.553437]
[1733789533750,0.32289405,97152.0,97151.0,1.553437]
[1733789533943,0.32289405,97152.0,97151.0,0.002]
[1733789534449,0.33403507,97152.0,97151.0,0.002]
[1733789534841,0.33403507,97152.0,97142.0,0.3955]
[1733789535064,0.33403507,97152.0,97134.0,0.18325461]
[1733789535065,0.051446,97135.0,97134.0,0.18325461]
[1733789535745,0.412246,97135.0,97134.0,0.18325461]
[1733789535948,0.3608,97135.0,97129.0,0.18325204]
[1733789536153,0.051447,97133.0,97132.0,0.07789749]
[1733789536546,0.3618,97135.0,97129.0,0.18325204]
[1733789536547,0.051449,97130.0,97129.0,0.18325204]
[1733789538751,0.051449,97130.0,97129.0,0.002]
[1733789538941,0.3608,97132.0,97127.0,0.15896434]
[1733789538942,0.05145,97128.0,97127.0,0.15896434]
[1733789539142,0.05145,97128.0,97127.0,0.06926434]
[1733789539377,0.05145,97128.0,97127.0,0.01756434]
[1733789539756,0.05145,97128.0,97127.0,5.778e-05]
[1733789540152,0.051454,97120.0,97112.0,9.036e-05]
[1733789540377,0.412254,97120.0,97119.0,0.21587395]
[1733789540949,0.3608,97120.0,97112.0,9.036e-05]
[1733789541250,0.051455,97118.0,97112.0,9.036e-05]
[1733789542058,0.37253784,97120.0,97112.0,9.036e-05]
[1733789542260,0.01113783,97120.0,97119.0,0.051454]
[1733789542461,0.002,97128.0,97119.0,0.051454]
[1733789542662,0.002,97128.0,97120.0,0.0596]
[1733789542849,0.13319042,97127.0,97126.0,0.051451]
[1733789543049,0.01074744,97127.0,97126.0,0.051451]
[1733789543455,0.23502423,97130.0,97129.0,0.051449]
[1733789543940,0.23502423,97130.0,97129.0,0.05466694]
[1733789544141,0.11251124,97130.0,97129.0,0.05466694]
[1733789545052,0.11251124,97130.0,97129.0,0.05566694]
[1733789545654,0.11251124,97130.0,97129.0,0.05666694]
[1733789546059,0.11251124,97130.0,97129.0,0.00521794]
[1733789546652,0.11251124,97130.0,97129.0,0.002]
[1733789546861,0.22861124,97130.0,97129.0,0.002]
[1733789547048,0.32071688,97130.0,97129.0,0.002]
[1733789547253,0.35144563,97130.0,97129.0,0.002]
[1733789547438,0.22861124,97130.0,97129.0,0.002]
[1733789548245,0.22861124,97130.0,97129.0,0.001]
[1733789548441,0.051453,97123.0,97107.0,0.109161]
[1733789548646,0.051453,97123.0,97116.0,0.00321867]
[1733789548839,0.09214822,97124.0,97114.0,0.3608]
[1733789549036,0.09214822,97124.0,97118.0,0.051455]
[1733789549244,0.36147285,97130.0,97119.0,0.00321862]
[1733789549245,0.0921497,97128.0,97119.0,0.00321862]
[1733789549448,0.09215813,97129.0,97120.0,0.00321862]
[1733789549648,0.09215813,97129.0,97118.0,0.051455]
[1733789549649,0.18431338,97129.0,97121.0,0.00321862]
[1733789549855,0.27646914,97129.0,97122.0,0.00321862]
[1733789550147,0.27646914,97129.0,97123.0,0.00321862]
[1733789550358,0.09216494,97128.0,97125.0,0.3608]
[1733789550727,0.09216401,97128.0,97126.0,0.00321862]
[1733789550847,0.27647739,97129.0,97127.0,0.00321838]
[1733789551148,0.28047739,97129.0,97128.0,0.00321838]
[1733789551747,0.36863854,97129.0,97128.0,0.00321838]
[1733789553752,0.36863854,97129.0,97128.0,0.05466838]
[1733789553954,0.27873854,97129.0,97128.0,0.05466838]
[1733789554148,0.18883854,97129.0,97128.0,0.0598172]
[1733789554493,0.09993854,97129.0,97128.0,0.0598172]
[1733789554659,0.09177723,97130.0,97128.0,1.5598172]
[1733789554872,0.09177723,97130.0,97129.0,0.00836586]
[1733789554873,0.00187723,97130.0,97129.0,0.00836586]
[1733789555556,0.05332623,97130.0,97129.0,0.00321764]
[1733789555955,0.05332623,97130.0,97128.0,0.003]
[1733789556162,0.051456,97116.0,97109.0,0.55189373]
[1733789556340,0.051456,97116.0,97109.0,0.55269373]
[1733789556958,0.051456,97116.0,97115.0,0.12563186]
[1733789557172,0.051456,97116.0,97109.0,0.55269373]
[1733789557173,0.412256,97116.0,97109.0,0.55269373]
[1733789557345,0.051458,97113.0,97109.0,0.55114928]
[1733789557847,0.051459,97110.0,97109.0,0.55114928]
[1733789558041,0.051459,97110.0,97109.0,0.55034928]
[1733789558755,0.10153457,97110.0,97109.0,0.01094928]
[1733789559074,0.05146,97108.0,97107.0,0.26030409]
[1733789559247,0.59522204,97108.0,97104.0,0.90791753]
[1733789559449,0.051462,97105.0,97104.0,0.36879021]
[1733789559655,0.051462,97105.0,97104.0,0.13178422]
[1733789559853,0.351462,97105.0,97104.0,0.05613448]
[1733789560054,0.71221344,97105.0,97104.0,0.04744225]
[1733789560250,0.70379463,97105.0,97104.0,0.03362365]
[1733789560746,0.87301956,97105.0,97104.0,0.03362365]
[1733789561361,0.82155756,97105.0,97093.0,0.14483832]
[1733789561555,0.412268,97094.0,97093.0,0.14483832]
[1733789561735,0.59714379,97094.0,97093.0,0.14483832]
[1733789563332,0.60785224,97094.0,97093.0,0.14483832]
[1733789563540,0.051469,97092.0,97091.0,0.25601859]
[1733789563740,0.412269,97092.0,97091.0,0.25601859]
[1733789564043,0.78040693,97092.0,97091.0,0.25601859]
[1733789564341,1.02604755,97092.0,97091.0,0.25601859]
[1733789564639,0.78040693,97092.0,97091.0,0.25601859]
[1733789565033,0.78340693,97092.0,97091.0,0.25601859]
[1733789565238,0.60714479,97092.0,97091.0,0.25601859]
[1733789565448,0.82202143,97092.0,97091.0,0.25601859]
[1733789565638,0.60414479,97092.0,97091.0,0.25601859]
[1733789565845,0.61114479,97092.0,97091.0,0.25601859]
[1733789567345,0.60914479,97092.0,97091.0,0.25601859]
[1733789567638,0.11355351,97092.0,97091.0,0.25601859]
[1733789567843,0.11255351,97092.0,97091.0,0.25601859]
[1733789568437,0.11555351,97092.0,97091.0,0.25601859]
[1733789569449,0.10655351,97092.0,97091.0,0.25601859]
[1733789569644,0.051466,97088.0,97087.0,0.0556]
[1733789569839,0.10155051,97088.0,97087.0,0.0556]
[1733789570951,0.10355051,97088.0,97087.0,0.0556]
[1733789571336,0.053466,97088.0,97087.0,0.0556]
[1733789571961,0.059466,97088.0,97087.0,0.0556]
[1733789572544,0.21555945,97094.0,97087.0,0.0556]
[1733789572854,0.21555945,97094.0,97093.0,0.3608]
[1733789574547,0.051464,97092.0,97088.0,0.3608]
[1733789576344,0.13645945,97094.0,97090.0,0.051464]
[1733789576546,0.005,97092.0,97090.0,0.051464]
[1733789576738,0.005,97092.0,97088.0,0.3618]
[1733789576940,0.051465,97090.0,97088.0,0.3618]
[1733789578244,0.051465,97090.0,97088.0,0.3608]
[1733789578951,0.056465,97090.0,97088.0,0.3618]
[1733789579349,0.058465,97090.0,97088.0,0.3618]
[1733789580753,0.007,97090.0,97088.0,0.3618]
[1733789581255,0.06805349,97094.0,97093.0,0.051463]
[1733789581448,0.051456,97106.0,97088.0,0.3626]
[1733789581655,0.051453,97113.0,97105.0,0.3608]
[1733789581844,0.22559336,97112.0,97100.0,0.10186999]
[1733789582152,0.22559336,97112.0,97110.0,0.051454]
[1733789582745,0.22559336,97112.0,97111.0,0.3608]
[1733789582948,0.051447,97124.0,97111.0,0.3608]
[1733789583146,0.6376044,97129.0,97120.0,0.051449]
[1733789583344,0.6376044,97129.0,97100.0,0.001]
[1733789583345,0.61698413,97121.0,97100.0,0.001]
[1733789583653,0.051459,97102.0,97100.0,0.001]
[1733789583954,0.051454,97110.0,97100.0,0.001]
[1733789584349,0.60613711,97121.0,97100.0,0.10286999]
[1733789584558,0.051449,97119.0,97107.0,0.051455]
[1733789584744,0.60613711,97121.0,97110.0,0.001]
[1733789584745,0.009,97112.0,97110.0,0.001]
[1733789585144,0.014,97112.0,97110.0,0.001]
[1733789585347,0.014,97112.0,97111.0,0.00321861]
[1733789585853,0.05145,97118.0,97111.0,0.00321861]
[1733789586151,0.05145,97118.0,97112.0,0.00321854]
[1733789586345,0.16870558,97120.0,97113.0,0.051452]
[1733789587545,0.16870558,97120.0,97114.0,0.051452]
[1733789587755,0.21876273,97120.0,97114.0,0.051452]
[1733789588255,0.21876273,97120.0,97113.0,0.002]
[1733789588456,0.21876273,97120.0,97113.0,0.003]
[1733789588457,0.051451,97117.0,97113.0,0.003]
[1733789589058,0.051451,97117.0,97114.0,0.002]
[1733789589356,0.051451,97117.0,97114.0,0.004]
[1733789589855,0.051451,97117.0,97114.0,0.002]
[1733789590244,0.051451,97116.0,97114.0,0.002]
[1733789590445,0.051461,97097.0,97084.0,0.051468]
[1733789590752,0.3608,97096.0,97087.0,0.00514998]
[1733789590953,0.3608,97096.0,97088.0,0.00514998]
[1733789591144,0.3608,97096.0,97084.0,0.051468]
[1733789591853,0.3618,97096.0,97087.0,0.009]
[1733789592155,0.3628,97096.0,97088.0,0.004]
[1733789592356,0.3618,97096.0,97088.0,0.004]
[1733789592548,0.3628,97096.0,97088.0,0.004]
[1733789592955,0.002,97096.0,97094.0,0.051462]
[1733789593849,0.002,97096.0,97089.0,0.35395561]
[1733789594053,0.002,97096.0,97090.0,0.00515031]
[1733789594254,0.002,97096.0,97091.0,0.00515031]
[1733789594457,0.002,97096.0,97089.0,0.36510687]
[1733789594648,0.001,97096.0,97094.0,0.056462]
[1733789594957,0.2063327,97115.0,97112.0,0.051453]
[1733789595458,0.21724396,97115.0,97114.0,0.051452]
[1733789595648,0.2063327,97115.0,97114.0,0.051452]
[1733789596053,0.2073327,97115.0,97114.0,1.851452]
[1733789596255,0.21876273,97120.0,97119.0,0.051449]
[1733789596451,0.0579,97140.0,97132.0,0.051442]
[1733789596858,0.01348753,97139.0,97132.0,0.051442]
[1733789597153,0.01348753,97139.0,97132.0,1.551442]
[1733789597951,0.00308592,97133.0,97132.0,1.551442]
[1733789598553,0.24450746,97145.0,97144.0,0.051436]
[1733789599748,0.24450746,97145.0,97142.0,0.3608]
[1733789599749,0.24450746,97145.0,97134.0,0.051441]
[1733789599952,0.24450746,97145.0,97132.0,0.3616]
[1733789600253,0.24450746,97145.0,97113.0,0.3608]
[1733789600254,0.3608,97134.0,97113.0,0.3608]
[1733789600454,0.412248,97123.0,97114.0,0.00836719]
[1733789600762,0.051451,97116.0,97112.0,0.0015445]
[1733789600959,0.3608,97113.0,97112.0,0.0015445]
[1733789601347,0.3608,97113.0,97112.0,0.00669315]
[1733789601560,0.3608,97113.0,97112.0,0.0015445]
[1733789601961,0.3608,97113.0,97112.0,0.00669289]
[1733789602257,0.3608,97123.0,97119.0,0.051449]
[1733789602465,0.3608,97123.0,97120.0,0.00514819]
[1733789602660,0.3608,97123.0,97121.0,0.00514819]
[1733789602965,0.3608,97123.0,97122.0,0.0032179]
[1733789603151,0.3608,97123.0,97119.0,0.051449]
[1733789603348,0.37459899,97123.0,97119.0,0.051449]
[1733789603854,0.37459899,97123.0,97120.0,0.00321821]
[1733789604155,0.01379899,97123.0,97121.0,0.00521818]
[1733789604349,0.0569,97132.0,97122.0,0.00321818]
[1733789604555,0.0569,97132.0,97123.0,0.00321818]
[1733789604752,0.0569,97132.0,97124.0,0.00321818]
[1733789605056,0.0569,97132.0,97119.0,0.002]
[1733789605057,0.0569,97132.0,97125.0,0.00321818]
[1733789605257,0.0569,97132.0,97120.0,0.002]
[1733789605457,0.07040157,97132.0,97121.0,0.00321792]
[1733789605660,0.07040157,97132.0,97122.0,0.00321792]
[1733789605957,0.0555,97133.0,97131.0,0.051443]
[1733789606164,0.41702001,97144.0,97132.0,0.00321792]
[1733789606360,0.01375791,97136.0,97133.0,0.05465992]
[1733789606659,0.41702001,97144.0,97133.0,0.00321792]
[1733789606861,0.4165,97144.0,97142.0,0.051437]
[1733789607756,0.42982022,97144.0,97142.0,0.051437]
[1733789608070,0.43682022,97144.0,97142.0,0.052437]
[1733789608667,0.43982022,97144.0,97142.0,0.052437]
[1733789608862,0.43982022,97144.0,97143.0,0.00321749]
[1733789609559,0.3708,97144.0,97143.0,0.00321749]
[1733789610061,0.3718,97144.0,97143.0,0.00421749]
[1733789610468,0.3718,97144.0,97143.0,0.00421744]
[1733789610863,0.3718,97144.0,97122.0,0.00154427]
[1733789611062,0.3608,97131.0,97123.0,0.00514801]
[1733789611265,0.051447,97124.0,97122.0,0.00154427]
[1733789611466,0.0569,97123.0,97122.0,0.00154427]
[1733789611664,0.4177,97123.0,97122.0,0.00154427]
[1733789611970,0.051451,97116.0,97107.0,0.051456]
[1733789612268,0.3608,97108.0,97107.0,0.051456]
[1733789612565,0.412255,97108.0,97107.0,0.00514963]
[1733789612768,0.412255,97108.0,97093.0,1.5]
[1733789612959,0.3608,97098.0,97094.0,0.00514986]
[1733789613155,0.3608,97098.0,97095.0,0.00514986]
[1733789613355,0.3608,97098.0,97096.0,0.00514986]
[1733789613570,0.3608,97098.0,97093.0,1.50076]
[1733789613759,0.3608,97098.0,97094.0,0.00515011]
[1733789613958,0.051462,97096.0,97095.0,0.00515011]
[1733789614165,0.051463,97094.0,97093.0,0.007]
[1733789615264,0.01342434,97094.0,97093.0,0.058463]
[1733789615466,0.3608,97098.0,97093.0,0.051463]
[1733789615772,0.3752516,97098.0,97096.0,0.006]
[1733789616071,0.3742516,97098.0,97093.0,0.051463]
[1733789616256,0.001,97094.0,97093.0,0.058463]
[1733789616460,0.001,97094.0,97093.0,0.060463]
[1733789616461,0.002,97094.0,97093.0,0.060463]
[1733789616661,0.001,97094.0,97093.0,0.053463]
[1733789616861,0.001,97094.0,97093.0,0.060463]
[1733789617073,0.001,97094.0,97093.0,1.560463]
[1733789617371,0.002,97094.0,97093.0,1.560463]
[1733789617766,0.001,97094.0,97093.0,1.558463]
[1733789617969,0.001,97094.0,97093.0,1.560463]
[1733789619087,0.00152001,97098.0,97097.0,0.051461]
[1733789619272,0.001,97098.0,97097.0,0.05661087]
[1733789619566,0.3608,97119.0,97109.0,0.051455]
[1733789619767,0.20507658,97118.0,97109.0,0.05660424]
[1733789620076,0.1843008,97118.0,97109.0,0.05660424]
[1733789620278,0.3608,97119.0,97118.0,0.05145]
[1733789620870,0.3608,97119.0,97118.0,0.05659878]
[1733789621767,0.3608,97119.0,97118.0,1.55659878]
[1733789621966,0.01335667,97125.0,97124.0,0.051447]
[1733789622166,0.3608,97128.0,97127.0,0.051446]
[1733789622862,0.3608,97128.0,97127.0,0.05466378]
[1733789623063,0.1115,97134.0,97133.0,0.051443]
[1733789623264,0.1115,97134.0,97133.0,0.05466078]
[1733789623669,0.1115,97134.0,97133.0,0.051443]
[1733789623971,0.3608,97149.0,97144.0,0.051441]
[1733789624175,0.37418747,97149.0,97144.0,0.051441]
[1733789624370,0.02095803,97148.0,97144.0,0.051441]
[1733789624976,0.02095803,97148.0,97144.0,0.05465836]
[1733789625178,0.02095803,97148.0,97144.0,0.051441]
[1733789625378,0.02095803,97148.0,97144.0,0.05465852]